[Event "Late-Titled-Tuesday-Blitz-June-04-2024"]
[Site "Chess.com"]
[Date "2024.06.04"]
[Round "11"]
[White "LeninGuerra"]
[Black "Abund"]
[Result "1-0"]
[WhiteElo "2574"]
[BlackElo "2773"]
[TimeControl "180+1"]
[EndTime "16:06:04 PDT"]
[Termination "LeninGuerra won by resignation"]

1. e4 {[%clk 0:03:00.9]} 1... c6 {[%clk 0:03:00.2]} 2. Nf3 {[%clk 0:03:00.9]}
2... d5 {[%clk 0:03:01.1]} 3. exd5 {[%clk 0:03:01.3]} 3... cxd5 {[%clk
0:03:01.5]} 4. Ne5 {[%clk 0:03:01.8]} 4... Nc6 {[%clk 0:03:02]} 5. Bb5 {[%clk
0:03:01.4]} 5... Bd7 {[%clk 0:03:02]} 6. Bxc6 {[%clk 0:03:01.4]} 6... Bxc6
{[%clk 0:03:00.7]} 7. O-O {[%clk 0:03:02.3]} 7... e6 {[%clk 0:03:00.8]} 8. b3
{[%clk 0:03:02.6]} 8... Bd6 {[%clk 0:03:00.4]} 9. Bb2 {[%clk 0:03:03.1]} 9...
Nf6 {[%clk 0:02:57.8]} 10. d3 {[%clk 0:03:02.3]} 10... Qc7 {[%clk 0:02:34.4]}
11. Re1 {[%clk 0:03:01.4]} 11... O-O-O {[%clk 0:02:14.5]} 12. Nd2 {[%clk
0:02:56.1]} 12... Rdf8 {[%clk 0:02:12.9]} 13. c4 {[%clk 0:02:54.3]} 13... Kb8
{[%clk 0:02:10.8]} 14. Rc1 {[%clk 0:02:52.5]} 14... Qb6 {[%clk 0:01:53.2]} 15.
a3 {[%clk 0:02:45.1]} 15... Bxe5 {[%clk 0:01:44.1]} 16. Bxe5+ {[%clk 0:02:43.9]}
16... Ka8 {[%clk 0:01:44.4]} 17. c5 {[%clk 0:02:42.3]} 17... Qd8 {[%clk
0:01:36.6]} 18. b4 {[%clk 0:02:42.1]} 18... d4 {[%clk 0:01:36.1]} 19. Qb3 {[%clk
0:02:35.4]} 19... Ng4 {[%clk 0:01:30.5]} 20. b5 {[%clk 0:02:29.7]} 20... Bxg2
{[%clk 0:01:07.8]} 21. Kxg2 {[%clk 0:01:27.5]} 21... Qg5 {[%clk 0:01:07.1]} 22.
Bg3 {[%clk 0:01:09.7]} 22... Qxd2 {[%clk 0:01:06.9]} 23. Kf1 {[%clk 0:01:09.6]}
23... Rc8 {[%clk 0:00:46.3]} 24. c6 {[%clk 0:01:08.5]} 24... Nf6 {[%clk
0:00:36.5]} 25. Rc2 {[%clk 0:01:06.7]} 25... Qa5 {[%clk 0:00:35.6]} 26. Rc4
{[%clk 0:01:00.5]} 26... Nd5 {[%clk 0:00:33.6]} 27. Rec1 {[%clk 0:00:55.7]}
27... h5 {[%clk 0:00:20.4]} 28. Bd6 {[%clk 0:00:50.7]} 28... h4 {[%clk
0:00:17.2]} 29. Ra4 {[%clk 0:00:50.6]} 29... Qd8 {[%clk 0:00:11.8]} 30. Rxa7+
{[%clk 0:00:35.8]} 30... Kxa7 {[%clk 0:00:12]} 31. Qa4+ {[%clk 0:00:36.2]} 31...
Kb6 {[%clk 0:00:12.7]} 32. Bc5+ {[%clk 0:00:36.4]} 32... Kc7 {[%clk 0:00:12.8]}
33. b6+ {[%clk 0:00:36.6]} 33... Nxb6 {[%clk 0:00:11.1]} 34. Qa5 {[%clk
0:00:32.5]} 34... bxc6 {[%clk 0:00:04.7]} 35. Bxb6+ {[%clk 0:00:31.3]} 35... Kd7
{[%clk 0:00:05.2]} 36. Bxd8 {[%clk 0:00:31.4]} 36... Rhxd8 {[%clk 0:00:05.9]}
37. Qa7+ {[%clk 0:00:31.6]} 37... Rc7 {[%clk 0:00:06.4]} 38. Qxd4+ {[%clk
0:00:31.4]} 38... Ke8 {[%clk 0:00:07.1]} 39. Qxg7 {[%clk 0:00:31.9]} 39... Rxd3
{[%clk 0:00:07.1]} 40. Qh8+ {[%clk 0:00:31.6]} 40... Kd7 {[%clk 0:00:07.1]} 41.
Qxh4 {[%clk 0:00:32]} 41... Rb7 {[%clk 0:00:07.4]} 42. Qf6 {[%clk 0:00:30.2]}
42... Ke8 {[%clk 0:00:07.1]} 43. Rxc6 {[%clk 0:00:29.5]} 43... Rb1+ {[%clk
0:00:06.8]} 44. Kg2 {[%clk 0:00:29]} 44... Kd7 {[%clk 0:00:07.2]} 45. Rc3 {[%clk
0:00:27.6]} 45... Rdd1 {[%clk 0:00:07.1]} 46. Qxf7+ {[%clk 0:00:27.3]} 46... Kd6
{[%clk 0:00:07.7]} 47. Qc7+ {[%clk 0:00:27.5]} 47... Kd5 {[%clk 0:00:08.3]} 48.
Qc5+ {[%clk 0:00:27.7]} 48... Ke4 {[%clk 0:00:09]} 49. Re3+ {[%clk 0:00:27.9]}
49... Kf4 {[%clk 0:00:08.8]} 50. Qe5+ {[%clk 0:00:28.5]} 50... Kg4 {[%clk
0:00:07.7]} 51. Rg3+ {[%clk 0:00:29.2]} 1-0

[Event "Late-Titled-Tuesday-Blitz-June-04-2024"]
[Site "Chess.com"]
[Date "2024.06.04"]
[Round "11"]
[White "sammartin99"]
[Black "azzbrn"]
[Result "0-1"]
[WhiteElo "2311"]
[BlackElo "2516"]
[TimeControl "180+1"]
[EndTime "16:06:10 PDT"]
[Termination "azzbrn won on time"]

1. d4 {[%clk 0:03:00.9]} 1... Nf6 {[%clk 0:02:59.9]} 2. c4 {[%clk 0:03:00.1]}
2... e6 {[%clk 0:02:58.9]} 3. Nc3 {[%clk 0:02:59.5]} 3... Bb4 {[%clk 0:02:59.6]}
4. a3 {[%clk 0:02:59.2]} 4... Bxc3+ {[%clk 0:02:59.9]} 5. bxc3 {[%clk
0:02:59.4]} 5... O-O {[%clk 0:03:00.8]} 6. f3 {[%clk 0:02:58.6]} 6... d5 {[%clk
0:02:58.7]} 7. cxd5 {[%clk 0:02:57.5]} 7... exd5 {[%clk 0:02:59.6]} 8. e3 {[%clk
0:02:57.9]} 8... c5 {[%clk 0:02:59.8]} 9. Bd3 {[%clk 0:02:58]} 9... Nc6 {[%clk
0:02:55]} 10. Ne2 {[%clk 0:02:57.2]} 10... b6 {[%clk 0:02:47.9]} 11. O-O {[%clk
0:02:56.1]} 11... Bb7 {[%clk 0:02:47.4]} 12. Re1 {[%clk 0:02:53.8]} 12... Re8
{[%clk 0:02:47.3]} 13. Ng3 {[%clk 0:02:52.5]} 13... h5 {[%clk 0:02:38]} 14. Ra2
{[%clk 0:02:30]} 14... h4 {[%clk 0:02:34]} 15. Nf5 {[%clk 0:02:27.8]} 15... h3
{[%clk 0:02:34]} 16. gxh3 {[%clk 0:02:22.1]} 16... g6 {[%clk 0:02:19]} 17. Rg2
{[%clk 0:02:20.4]} 17... Qd7 {[%clk 0:01:56.8]} 18. Bd2 {[%clk 0:01:19.5]} 18...
Kf8 {[%clk 0:01:45.3]} 19. Ng3 {[%clk 0:01:01.5]} 19... Qxh3 {[%clk 0:01:42.2]}
20. e4 {[%clk 0:00:38.3]} 20... cxd4 {[%clk 0:01:31.9]} 21. cxd4 {[%clk
0:00:37]} 21... Nxd4 {[%clk 0:01:11]} 22. Bb4+ {[%clk 0:00:35.9]} 22... Kg8
{[%clk 0:01:04]} 23. Bf1 {[%clk 0:00:20.6]} 23... Ne6 {[%clk 0:00:45.6]} 24. Nf5
{[%clk 0:00:12.8]} 24... Qh5 {[%clk 0:00:33.9]} 25. Nd6 {[%clk 0:00:06.8]} 25...
Bc6 {[%clk 0:00:18.4]} 26. Nxe8 {[%clk 0:00:06]} 26... Rxe8 {[%clk 0:00:19.3]}
27. e5 {[%clk 0:00:05.1]} 27... Nd7 {[%clk 0:00:15.7]} 28. Bd6 {[%clk
0:00:04.5]} 28... Nf4 {[%clk 0:00:15.7]} 29. Rg3 {[%clk 0:00:04.5]} 29... Nxe5
{[%clk 0:00:14.7]} 30. Bxe5 {[%clk 0:00:02.2]} 30... Rxe5 {[%clk 0:00:15.6]} 31.
Rxe5 {[%clk 0:00:01.3]} 31... Qxe5 {[%clk 0:00:16.5]} 32. Qd2 {[%clk 0:00:01.9]}
32... d4 {[%clk 0:00:14.6]} 33. Bd3 {[%clk 0:00:01.7]} 33... Nxd3 {[%clk
0:00:06.9]} 34. Qxd3 {[%clk 0:00:02.6]} 34... Bb5 {[%clk 0:00:06.6]} 35. Qd2
{[%clk 0:00:02.7]} 35... d3 {[%clk 0:00:04.1]} 36. Rg2 {[%clk 0:00:02.5]} 36...
Qa1+ {[%clk 0:00:04]} 37. Kf2 {[%clk 0:00:02.2]} 37... Qxa3 {[%clk 0:00:03.9]}
38. Kg3 {[%clk 0:00:02.4]} 38... Qd6+ {[%clk 0:00:03.9]} 39. Kh3 {[%clk
0:00:02.7]} 39... Bd7+ {[%clk 0:00:04.1]} 40. Kh4 {[%clk 0:00:02.9]} 40... Qd4+
{[%clk 0:00:04.3]} 41. Kg5 {[%clk 0:00:02.4]} 41... Qd5+ {[%clk 0:00:03]} 0-1

[Event "Late-Titled-Tuesday-Blitz-June-04-2024"]
[Site "Chess.com"]
[Date "2024.06.04"]
[Round "11"]
[White "Viktor_Poddubnyi"]
[Black "Bala-Afiada"]
[Result "1-0"]
[WhiteElo "2339"]
[BlackElo "2084"]
[TimeControl "180+1"]
[EndTime "16:06:10 PDT"]
[Termination "Viktor_Poddubnyi won by resignation"]

1. e4 {[%clk 0:03:00]} 1... c5 {[%clk 0:02:59.8]} 2. Nf3 {[%clk 0:02:59.7]} 2...
Nc6 {[%clk 0:02:58.6]} 3. d4 {[%clk 0:02:59.8]} 3... cxd4 {[%clk 0:02:59.5]} 4.
Nxd4 {[%clk 0:03:00.3]} 4... Nf6 {[%clk 0:03:00.1]} 5. Nc3 {[%clk 0:03:00.5]}
5... d6 {[%clk 0:03:00.5]} 6. Bc4 {[%clk 0:02:59.8]} 6... e6 {[%clk 0:03:00.7]}
7. Bb3 {[%clk 0:02:58.4]} 7... Be7 {[%clk 0:03:01]} 8. Be3 {[%clk 0:02:58.6]}
8... O-O {[%clk 0:03:00.6]} 9. Qe2 {[%clk 0:02:58.8]} 9... Qa5 {[%clk
0:02:49.7]} 10. O-O-O {[%clk 0:02:54.9]} 10... a6 {[%clk 0:02:43]} 11. g4 {[%clk
0:02:47.3]} 11... Nxd4 {[%clk 0:02:42.6]} 12. Rxd4 {[%clk 0:02:41.1]} 12... e5
{[%clk 0:02:40.9]} 13. Ra4 {[%clk 0:02:40.4]} 13... Qc7 {[%clk 0:02:37.8]} 14.
g5 {[%clk 0:02:39.2]} 14... Ng4 {[%clk 0:02:26.7]} 15. Nd5 {[%clk 0:02:28.2]}
15... Qd8 {[%clk 0:02:21.2]} 16. Bb6 {[%clk 0:02:06.3]} 16... Qd7 {[%clk
0:02:12.3]} 17. h4 {[%clk 0:01:46.7]} 17... Bd8 {[%clk 0:01:24.9]} 18. f3 {[%clk
0:01:45.4]} 18... Rb8 {[%clk 0:01:17.3]} 19. fxg4 {[%clk 0:01:30.6]} 19... Qxg4
{[%clk 0:01:17.2]} 20. Qxg4 {[%clk 0:01:22.9]} 20... Bxg4 {[%clk 0:01:18.1]} 21.
Rc4 {[%clk 0:01:14.6]} 21... Be6 {[%clk 0:01:14.7]} 22. Bxd8 {[%clk 0:01:12.2]}
22... Rfxd8 {[%clk 0:01:14.5]} 23. Rc7 {[%clk 0:01:11.3]} 23... b5 {[%clk
0:01:10.1]} 24. Ne7+ {[%clk 0:00:55.8]} 24... Kf8 {[%clk 0:01:04.2]} 25. Nc6
{[%clk 0:00:52.8]} 25... Rdc8 {[%clk 0:00:59]} 26. Nxb8 {[%clk 0:00:50]} 26...
Rxc7 {[%clk 0:00:57.4]} 27. Nxa6 {[%clk 0:00:50.2]} 27... Ra7 {[%clk 0:00:37.6]}
28. Bxe6 {[%clk 0:00:44.5]} 28... fxe6 {[%clk 0:00:30.7]} 29. Nb4 {[%clk
0:00:43.6]} 29... Ra4 {[%clk 0:00:30.8]} 30. a3 {[%clk 0:00:42.4]} 30... d5
{[%clk 0:00:30.3]} 31. exd5 {[%clk 0:00:39.6]} 31... exd5 {[%clk 0:00:31.2]} 32.
Nxd5 {[%clk 0:00:39.5]} 32... Rd4 {[%clk 0:00:27.3]} 33. Rf1+ {[%clk 0:00:36.6]}
33... Ke8 {[%clk 0:00:25.8]} 34. Nc7+ {[%clk 0:00:35.7]} 34... Ke7 {[%clk
0:00:23.9]} 35. Nxb5 {[%clk 0:00:34.6]} 35... Rxh4 {[%clk 0:00:24.1]} 36. Rg1
{[%clk 0:00:29.4]} 36... Rh2 {[%clk 0:00:21.3]} 37. Nc3 {[%clk 0:00:29.1]} 37...
Ke6 {[%clk 0:00:21.4]} 38. a4 {[%clk 0:00:28.9]} 38... h6 {[%clk 0:00:19.8]} 39.
gxh6 {[%clk 0:00:28.1]} 39... gxh6 {[%clk 0:00:20.7]} 40. a5 {[%clk 0:00:26.9]}
40... Rf2 {[%clk 0:00:18.7]} 41. Rh1 {[%clk 0:00:24.7]} 41... Rf6 {[%clk
0:00:16.8]} 42. b4 {[%clk 0:00:23.3]} 42... Kd6 {[%clk 0:00:17]} 43. Kb2 {[%clk
0:00:23.1]} 43... Kc6 {[%clk 0:00:17.3]} 44. Kb3 {[%clk 0:00:22.4]} 44... Rg6
{[%clk 0:00:15.1]} 45. Rh5 {[%clk 0:00:20.4]} 45... Re6 {[%clk 0:00:14.8]} 46.
Ne4 {[%clk 0:00:18]} 46... Kb5 {[%clk 0:00:12.6]} 47. c4+ {[%clk 0:00:17.8]}
47... Kc6 {[%clk 0:00:11.5]} 48. b5+ {[%clk 0:00:18]} 48... Kb7 {[%clk
0:00:11.3]} 49. Nc5+ {[%clk 0:00:18.1]} 1-0

[Event "Late-Titled-Tuesday-Blitz-June-04-2024"]
[Site "Chess.com"]
[Date "2024.06.04"]
[Round "11"]
[White "KNVB"]
[Black "jaskol95"]
[Result "1-0"]
[WhiteElo "2771"]
[BlackElo "2574"]
[TimeControl "180+1"]
[EndTime "16:06:11 PDT"]
[Termination "KNVB won on time"]

1. e4 {[%clk 0:03:00.9]} 1... d5 {[%clk 0:03:00.3]} 2. a3 {[%clk 0:03:00.7]}
2... dxe4 {[%clk 0:03:00.3]} 3. Nc3 {[%clk 0:03:01]} 3... Nf6 {[%clk 0:03:00.5]}
4. Qe2 {[%clk 0:03:01.7]} 4... Bf5 {[%clk 0:02:51.8]} 5. Qb5+ {[%clk 0:03:00.6]}
5... Bd7 {[%clk 0:02:38.2]} 6. Qxb7 {[%clk 0:03:01]} 6... Nc6 {[%clk 0:02:37.9]}
7. Bb5 {[%clk 0:03:01.7]} 7... Rb8 {[%clk 0:02:35.5]} 8. Qxc6 {[%clk 0:03:02.4]}
8... Bxc6 {[%clk 0:02:36.1]} 9. Bxc6+ {[%clk 0:03:03.3]} 9... Nd7 {[%clk
0:02:36.6]} 10. Nxe4 {[%clk 0:03:04]} 10... Rb6 {[%clk 0:02:36.4]} 11. Ba4
{[%clk 0:03:04.2]} 11... e6 {[%clk 0:02:35.6]} 12. Nf3 {[%clk 0:03:04]} 12...
Bd6 {[%clk 0:02:35.8]} 13. O-O {[%clk 0:03:03.8]} 13... O-O {[%clk 0:02:35.4]}
14. d4 {[%clk 0:03:04.3]} 14... h6 {[%clk 0:02:28.1]} 15. c4 {[%clk 0:02:50.6]}
15... Rb8 {[%clk 0:02:26.6]} 16. c5 {[%clk 0:02:16.7]} 16... Be7 {[%clk
0:02:26]} 17. b4 {[%clk 0:02:15.9]} 17... Nf6 {[%clk 0:02:26.1]} 18. Nxf6+
{[%clk 0:02:03.5]} 18... Bxf6 {[%clk 0:02:25.6]} 19. Be3 {[%clk 0:02:04.4]}
19... Qd5 {[%clk 0:02:23.7]} 20. Rab1 {[%clk 0:02:02.2]} 20... e5 {[%clk
0:02:10.9]} 21. Bb3 {[%clk 0:01:59.7]} 21... Qe4 {[%clk 0:02:06.6]} 22. dxe5
{[%clk 0:01:16.7]} 22... Bxe5 {[%clk 0:02:04]} 23. Rfe1 {[%clk 0:01:17.3]} 23...
Qf5 {[%clk 0:01:44.1]} 24. Nxe5 {[%clk 0:01:12.5]} 24... Qxe5 {[%clk 0:01:42.6]}
25. Bxh6 {[%clk 0:01:12.2]} 25... Qf5 {[%clk 0:01:35.6]} 26. Be3 {[%clk
0:01:11.5]} 26... a5 {[%clk 0:01:25.1]} 27. Bc4 {[%clk 0:01:11.7]} 27... axb4
{[%clk 0:01:24]} 28. axb4 {[%clk 0:01:12.6]} 28... c6 {[%clk 0:01:18.4]} 29. Bf1
{[%clk 0:01:02.9]} 29... Rfe8 {[%clk 0:01:11.8]} 30. b5 {[%clk 0:00:51.6]} 30...
cxb5 {[%clk 0:01:07]} 31. Rxb5 {[%clk 0:00:52.5]} 31... Rbc8 {[%clk 0:00:41.7]}
32. Rbb1 {[%clk 0:00:48.1]} 32... Re6 {[%clk 0:00:34.6]} 33. Rbc1 {[%clk
0:00:47.4]} 33... Qd5 {[%clk 0:00:25.6]} 34. Bc4 {[%clk 0:00:45.9]} 34... Qe4
{[%clk 0:00:24.3]} 35. Bd2 {[%clk 0:00:24.9]} 35... Qf5 {[%clk 0:00:12.1]} 36.
Bxe6 {[%clk 0:00:23.6]} 36... fxe6 {[%clk 0:00:13]} 37. Be3 {[%clk 0:00:19.3]}
37... Qd5 {[%clk 0:00:13.1]} 38. Red1 {[%clk 0:00:17.5]} 38... Qe4 {[%clk
0:00:13.3]} 39. Rd4 {[%clk 0:00:12.8]} 39... Qe5 {[%clk 0:00:08.7]} 40. c6
{[%clk 0:00:11.2]} 40... Qa5 {[%clk 0:00:05.3]} 41. Rdc4 {[%clk 0:00:10.5]}
41... Kf7 {[%clk 0:00:02.5]} 42. c7 {[%clk 0:00:10.4]} 42... Ke7 {[%clk
0:00:03]} 43. Rc5 {[%clk 0:00:08.7]} 43... Qa3 {[%clk 0:00:02.4]} 44. Bf4 {[%clk
0:00:08.3]} 44... Kd7 {[%clk 0:00:02.1]} 45. Be5 {[%clk 0:00:08.3]} 45... Ke7
{[%clk 0:00:01.4]} 46. Bxg7 {[%clk 0:00:06.1]} 1-0

[Event "Late-Titled-Tuesday-Blitz-June-04-2024"]
[Site "Chess.com"]
[Date "2024.06.04"]
[Round "11"]
[White "N_Mullodzhanov"]
[Black "YellowJacek"]
[Result "1-0"]
[WhiteElo "2515"]
[BlackElo "2375"]
[TimeControl "180+1"]
[EndTime "16:06:11 PDT"]
[Termination "N_Mullodzhanov won by resignation"]

1. e4 {[%clk 0:03:00.9]} 1... c5 {[%clk 0:02:57.6]} 2. c3 {[%clk 0:03:00.6]}
2... Nf6 {[%clk 0:02:55.6]} 3. e5 {[%clk 0:03:00.6]} 3... Nd5 {[%clk 0:02:55.9]}
4. Nf3 {[%clk 0:03:01.3]} 4... d6 {[%clk 0:02:55.3]} 5. exd6 {[%clk 0:03:01]}
5... Qxd6 {[%clk 0:02:55.1]} 6. d4 {[%clk 0:03:00.8]} 6... cxd4 {[%clk
0:02:53.1]} 7. Nxd4 {[%clk 0:03:01.1]} 7... a6 {[%clk 0:02:49]} 8. Nd2 {[%clk
0:03:00.3]} 8... Qc7 {[%clk 0:02:32.6]} 9. Bc4 {[%clk 0:02:56.9]} 9... Nf6
{[%clk 0:02:29]} 10. O-O {[%clk 0:02:56.2]} 10... e6 {[%clk 0:02:28.7]} 11. Qe2
{[%clk 0:02:55.4]} 11... Be7 {[%clk 0:02:28.1]} 12. N2f3 {[%clk 0:02:54.3]}
12... O-O {[%clk 0:02:27.6]} 13. Bg5 {[%clk 0:02:50.3]} 13... b5 {[%clk
0:02:22.4]} 14. Bb3 {[%clk 0:02:50]} 14... Nbd7 {[%clk 0:02:22.4]} 15. a4 {[%clk
0:02:45.4]} 15... bxa4 {[%clk 0:02:20.5]} 16. Rxa4 {[%clk 0:02:41.1]} 16... Nc5
{[%clk 0:02:08.5]} 17. Rc4 {[%clk 0:02:36.8]} 17... Qb6 {[%clk 0:02:07.3]} 18.
Bc2 {[%clk 0:02:31.9]} 18... a5 {[%clk 0:02:07.5]} 19. b4 {[%clk 0:02:21.8]}
19... Ncd7 {[%clk 0:02:00.3]} 20. Rc6 {[%clk 0:02:09.7]} 20... Qb8 {[%clk
0:01:59.7]} 21. b5 {[%clk 0:02:01]} 21... Bb7 {[%clk 0:01:52]} 22. Rc4 {[%clk
0:01:57]} 22... Nb6 {[%clk 0:01:45.4]} 23. Nc6 {[%clk 0:01:56.6]} 23... Qe8
{[%clk 0:01:41.4]} 24. Nxe7+ {[%clk 0:01:45.5]} 24... Qxe7 {[%clk 0:01:42.3]}
25. Rh4 {[%clk 0:01:20]} 25... h6 {[%clk 0:01:29.4]} 26. Bf4 {[%clk 0:01:00.3]}
26... Nbd5 {[%clk 0:01:25.5]} 27. Be5 {[%clk 0:00:58.2]} 27... Nd7 {[%clk
0:01:16.7]} 28. Qd3 {[%clk 0:00:49.7]} 28... f5 {[%clk 0:01:16.6]} 29. Rd4
{[%clk 0:00:38.4]} 29... Rfd8 {[%clk 0:00:55.7]} 30. c4 {[%clk 0:00:34.7]} 30...
Nb4 {[%clk 0:00:55.7]} 31. Qd2 {[%clk 0:00:31.8]} 31... Bxf3 {[%clk 0:00:54.7]}
32. Bd6 {[%clk 0:00:23.8]} 32... Qf6 {[%clk 0:00:50]} 33. Bxb4 {[%clk
0:00:23.6]} 33... Qg6 {[%clk 0:00:50.3]} 34. g3 {[%clk 0:00:12.9]} 34... axb4
{[%clk 0:00:50.5]} 35. Rxd7 {[%clk 0:00:12.9]} 35... Rxd7 {[%clk 0:00:49.3]} 36.
Qxd7 {[%clk 0:00:13.8]} 36... Qg4 {[%clk 0:00:43.7]} 37. Qxe6+ {[%clk
0:00:13.9]} 37... Kh8 {[%clk 0:00:44.1]} 38. Bxf5 {[%clk 0:00:12.1]} 38... Qh5
{[%clk 0:00:40.9]} 39. Qg6 {[%clk 0:00:10.8]} 39... Qxg6 {[%clk 0:00:40.8]} 40.
Bxg6 {[%clk 0:00:11.7]} 40... b3 {[%clk 0:00:36.1]} 41. h4 {[%clk 0:00:09.5]}
41... Rc8 {[%clk 0:00:35.2]} 42. Bd3 {[%clk 0:00:05.2]} 42... Rd8 {[%clk
0:00:34.8]} 43. Bg6 {[%clk 0:00:04]} 43... Be2 {[%clk 0:00:34.6]} 44. Rc1 {[%clk
0:00:01.9]} 44... b2 {[%clk 0:00:33.6]} 45. Rb1 {[%clk 0:00:02.2]} 45... Bxc4
{[%clk 0:00:32.4]} 46. Rxb2 {[%clk 0:00:02.5]} 46... Bd3 {[%clk 0:00:30.3]} 47.
Bxd3 {[%clk 0:00:01.1]} 47... Rxd3 {[%clk 0:00:31.2]} 48. b6 {[%clk 0:00:02]}
48... Rd8 {[%clk 0:00:31.1]} 49. b7 {[%clk 0:00:02.4]} 49... Rb8 {[%clk
0:00:31.9]} 50. f4 {[%clk 0:00:02.8]} 50... Kg8 {[%clk 0:00:32.8]} 51. Kf2
{[%clk 0:00:03.4]} 51... Kf7 {[%clk 0:00:33.7]} 52. Ke3 {[%clk 0:00:04.3]} 52...
Ke7 {[%clk 0:00:34.3]} 53. Kd4 {[%clk 0:00:05]} 53... Kd6 {[%clk 0:00:35.2]} 54.
Rb6+ {[%clk 0:00:03.9]} 54... Kc7 {[%clk 0:00:35.3]} 55. Kc5 {[%clk 0:00:04.8]}
55... Rxb7 {[%clk 0:00:34.1]} 56. Rxb7+ {[%clk 0:00:05]} 56... Kxb7 {[%clk
0:00:35]} 57. Kd6 {[%clk 0:00:05.9]} 57... Kb6 {[%clk 0:00:35.5]} 58. Ke7 {[%clk
0:00:06.4]} 58... Kc5 {[%clk 0:00:36.4]} 59. Kf7 {[%clk 0:00:07]} 59... Kd4
{[%clk 0:00:37.3]} 60. Kxg7 {[%clk 0:00:07.5]} 60... Ke4 {[%clk 0:00:38.2]} 61.
Kxh6 {[%clk 0:00:07.9]} 61... Kf3 {[%clk 0:00:39.1]} 62. f5 {[%clk 0:00:08.4]}
62... Kxg3 {[%clk 0:00:40]} 63. f6 {[%clk 0:00:09.3]} 63... Kg4 {[%clk
0:00:40.8]} 64. f7 {[%clk 0:00:10.2]} 64... Kf5 {[%clk 0:00:41.2]} 65. f8=Q+
{[%clk 0:00:10.6]} 1-0

[Event "Late-Titled-Tuesday-Blitz-June-04-2024"]
[Site "Chess.com"]
[Date "2024.06.04"]
[Round "11"]
[White "PNEPaul"]
[Black "shirovin"]
[Result "0-1"]
[WhiteElo "1923"]
[BlackElo "2096"]
[TimeControl "180+1"]
[EndTime "16:06:17 PDT"]
[Termination "shirovin won by resignation"]

1. e4 {[%clk 0:02:36.3]} 1... Nf6 {[%clk 0:02:57.7]} 2. Bc4 {[%clk 0:02:34.6]}
2... d5 {[%clk 0:02:52]} 3. exd5 {[%clk 0:02:33.5]} 3... Nxd5 {[%clk 0:02:51.7]}
4. Qf3 {[%clk 0:02:33.2]} 4... e6 {[%clk 0:02:47.2]} 5. Bxd5 {[%clk 0:02:33.3]}
5... exd5 {[%clk 0:02:41.1]} 6. Ne2 {[%clk 0:02:29]} 6... Be7 {[%clk 0:02:38.5]}
7. O-O {[%clk 0:02:26.8]} 7... O-O {[%clk 0:02:39]} 8. d4 {[%clk 0:02:25.6]}
8... c6 {[%clk 0:02:33.9]} 9. Bf4 {[%clk 0:02:24.7]} 9... Nd7 {[%clk 0:02:17.7]}
10. Nd2 {[%clk 0:02:23.7]} 10... Nf6 {[%clk 0:02:16.9]} 11. Rae1 {[%clk
0:02:20.4]} 11... Re8 {[%clk 0:02:13.1]} 12. Be5 {[%clk 0:02:18.4]} 12... Nd7
{[%clk 0:02:05.4]} 13. Bg3 {[%clk 0:02:14.5]} 13... Bf6 {[%clk 0:02:03.3]} 14.
c3 {[%clk 0:02:13.4]} 14... Nb6 {[%clk 0:02:02.1]} 15. Nf4 {[%clk 0:02:11.7]}
15... g6 {[%clk 0:01:58.7]} 16. Nd3 {[%clk 0:02:09.8]} 16... Bg7 {[%clk
0:01:57.1]} 17. Rxe8+ {[%clk 0:02:07.2]} 17... Qxe8 {[%clk 0:01:56.1]} 18. Re1
{[%clk 0:02:07.3]} 18... Qd8 {[%clk 0:01:52.6]} 19. Ne5 {[%clk 0:01:58.1]} 19...
Be6 {[%clk 0:01:49.7]} 20. Qd3 {[%clk 0:01:37.6]} 20... Nd7 {[%clk 0:01:43.8]}
21. Nef3 {[%clk 0:01:35.5]} 21... Qf6 {[%clk 0:01:24.7]} 22. Bh4 {[%clk
0:01:31.7]} 22... Qf5 {[%clk 0:01:22.2]} 23. Qxf5 {[%clk 0:01:30.5]} 23... Bxf5
{[%clk 0:01:15.9]} 24. Bg3 {[%clk 0:01:28.7]} 24... Nb6 {[%clk 0:01:10]} 25. h3
{[%clk 0:01:27.5]} 25... Be6 {[%clk 0:01:00.4]} 26. Ng5 {[%clk 0:01:25]} 26...
Bf5 {[%clk 0:00:51.9]} 27. Ngf3 {[%clk 0:01:07]} 27... Bf6 {[%clk 0:00:44.8]}
28. Be5 {[%clk 0:01:05.6]} 28... Bxe5 {[%clk 0:00:42.5]} 29. Nxe5 {[%clk
0:01:05.3]} 29... Na4 {[%clk 0:00:37.7]} 30. c4 {[%clk 0:00:49.9]} 30... dxc4
{[%clk 0:00:32.1]} 31. Ndxc4 {[%clk 0:00:46.2]} 31... Rd8 {[%clk 0:00:22.9]} 32.
b3 {[%clk 0:00:39.2]} 32... Nb6 {[%clk 0:00:21.6]} 33. Nxb6 {[%clk 0:00:35.6]}
33... axb6 {[%clk 0:00:20.7]} 34. Nf3 {[%clk 0:00:33.8]} 34... b5 {[%clk
0:00:20.1]} 35. Re7 {[%clk 0:00:32.6]} 35... Bc8 {[%clk 0:00:19.1]} 36. Kf1
{[%clk 0:00:29.9]} 36... Kf8 {[%clk 0:00:18.8]} 37. Re1 {[%clk 0:00:28.5]} 37...
Re8 {[%clk 0:00:18.1]} 38. Rxe8+ {[%clk 0:00:24.7]} 38... Kxe8 {[%clk
0:00:17.8]} 39. Ke2 {[%clk 0:00:24.5]} 39... Ke7 {[%clk 0:00:18]} 40. a3 {[%clk
0:00:24.2]} 40... Kd6 {[%clk 0:00:18]} 41. Ke3 {[%clk 0:00:23.1]} 41... Be6
{[%clk 0:00:17.2]} 42. b4 {[%clk 0:00:22.1]} 42... b6 {[%clk 0:00:15.8]} 43. Nd2
{[%clk 0:00:21]} 43... Bd5 {[%clk 0:00:14.7]} 44. g3 {[%clk 0:00:18.6]} 44... f5
{[%clk 0:00:14.1]} 45. f3 {[%clk 0:00:17.6]} 45... g5 {[%clk 0:00:13.7]} 46. g4
{[%clk 0:00:17.4]} 46... f4+ {[%clk 0:00:13.2]} 47. Kd3 {[%clk 0:00:16.5]} 47...
Be6 {[%clk 0:00:12]} 48. Kc3 {[%clk 0:00:16]} 48... Bf7 {[%clk 0:00:11.8]} 49.
Kd3 {[%clk 0:00:14.6]} 49... Bg6+ {[%clk 0:00:11.4]} 50. Ne4+ {[%clk 0:00:13.7]}
50... Kd5 {[%clk 0:00:11.3]} 0-1